[Event "Late-Titled-Tuesday-Blitz-March-12-2024"]
[Site "Chess.com"]
[Date "2024.03.12"]
[Round "5"]
[White "LUISMIGUELOV"]
[Black "mestrefeitosa19"]
[Result "0-1"]
[WhiteElo "2115"]
[BlackElo "2312"]
[TimeControl "180+1"]
[EndTime "14:54:04 PDT"]
[Termination "mestrefeitosa19 won by checkmate"]

1. d4 {[%clk 0:02:56.2]} 1... d5 {[%clk 0:02:59.5]} 2. c3 {[%clk 0:02:56.1]}
2... Nf6 {[%clk 0:02:56.8]} 3. Bg5 {[%clk 0:02:56.5]} 3... e6 {[%clk 0:02:56.9]}
4. Nd2 {[%clk 0:02:55.4]} 4... h6 {[%clk 0:02:56.2]} 5. e3 {[%clk 0:02:55.4]}
5... hxg5 {[%clk 0:02:55.6]} 6. Bd3 {[%clk 0:02:53.1]} 6... c5 {[%clk
0:02:53.1]} 7. Ngf3 {[%clk 0:02:52.7]} 7... g4 {[%clk 0:02:49.1]} 8. Ne5 {[%clk
0:02:52.3]} 8... cxd4 {[%clk 0:02:45.5]} 9. cxd4 {[%clk 0:02:49.7]} 9... Nc6
{[%clk 0:02:23.2]} 10. Nxg4 {[%clk 0:02:40.4]} 10... Nxg4 {[%clk 0:02:10.5]} 11.
Qxg4 {[%clk 0:02:39.9]} 11... e5 {[%clk 0:02:11.1]} 12. Qg3 {[%clk 0:02:33.1]}
12... exd4 {[%clk 0:02:07.8]} 13. O-O {[%clk 0:02:30.1]} 13... Be6 {[%clk
0:02:05.2]} 14. Rac1 {[%clk 0:02:21.3]} 14... Bd6 {[%clk 0:01:59.4]} 15. Qxg7
{[%clk 0:02:19.1]} 15... Bxh2+ {[%clk 0:01:58.6]} 16. Kh1 {[%clk 0:02:17.5]}
16... Be5+ {[%clk 0:01:52.2]} 17. Qxh8+ {[%clk 0:02:17.5]} 17... Bxh8 {[%clk
0:01:52.7]} 18. exd4 {[%clk 0:02:15.3]} 18... Qh4+ {[%clk 0:01:42.6]} 19. Kg1
{[%clk 0:02:12.9]} 19... Nxd4 {[%clk 0:01:43.2]} 20. g3 {[%clk 0:02:05.5]} 20...
Qh3 {[%clk 0:01:28.4]} 21. Rfe1 {[%clk 0:02:02.6]} 21... Bf6 {[%clk 0:01:21.6]}
22. Rc7 {[%clk 0:01:59.6]} 22... Bg5 {[%clk 0:01:17]} 23. Bf1 {[%clk 0:01:52.1]}
23... Bxd2 {[%clk 0:00:54.8]} 24. Bxh3 {[%clk 0:01:46.7]} 24... Nf3+ {[%clk
0:00:54.8]} 25. Kh1 {[%clk 0:01:34.4]} 25... Bxe1 {[%clk 0:00:51.6]} 26. Bxe6
{[%clk 0:01:33.7]} 26... fxe6 {[%clk 0:00:52.5]} 27. Rxb7 {[%clk 0:01:32]} 27...
d4 {[%clk 0:00:41.9]} 28. Kg2 {[%clk 0:01:31.6]} 28... Ne5 {[%clk 0:00:36.4]}
29. Kf1 {[%clk 0:01:30]} 29... Ba5 {[%clk 0:00:30.6]} 30. f4 {[%clk 0:01:29.6]}
30... Nc6 {[%clk 0:00:27.1]} 31. Ke2 {[%clk 0:01:26.5]} 31... Rd8 {[%clk
0:00:25.6]} 32. a3 {[%clk 0:01:19.4]} 32... d3+ {[%clk 0:00:24.9]} 33. Kd1
{[%clk 0:01:18.6]} 33... Nd4 {[%clk 0:00:20.5]} 34. b4 {[%clk 0:01:18]} 34...
Bb6 {[%clk 0:00:20.2]} 35. a4 {[%clk 0:01:12.3]} 35... Nf3 {[%clk 0:00:18.8]}
36. a5 {[%clk 0:01:12.1]} 36... Be3 {[%clk 0:00:18.2]} 37. b5 {[%clk 0:01:09.3]}
37... Nh2 {[%clk 0:00:14.9]} 38. b6 {[%clk 0:01:08.1]} 38... axb6 {[%clk
0:00:13.1]} 39. a6 {[%clk 0:01:05.8]} 39... b5 {[%clk 0:00:13.4]} 40. a7 {[%clk
0:01:05.7]} 40... Ng4 {[%clk 0:00:12.9]} 41. Rxb5 {[%clk 0:01:01.3]} 41... Nf2+
{[%clk 0:00:12.8]} 42. Ke1 {[%clk 0:00:55.1]} 42... d2+ {[%clk 0:00:12.7]} 43.
Ke2 {[%clk 0:00:55.4]} 43... d1=Q+ {[%clk 0:00:13]} 44. Kxe3 {[%clk 0:00:56]}
44... Qd2+ {[%clk 0:00:12.8]} 45. Kf3 {[%clk 0:00:53.1]} 45... Rd3+ {[%clk
0:00:09.2]} 46. Kg2 {[%clk 0:00:49.8]} 46... Ne4+ {[%clk 0:00:07.4]} 47. Kh3
{[%clk 0:00:49.7]} 47... Rxg3+ {[%clk 0:00:07]} 48. Kh4 {[%clk 0:00:49.4]} 48...
Qh2# {[%clk 0:00:07.6]} 0-1

[Event "Late-Titled-Tuesday-Blitz-March-12-2024"]
[Site "Chess.com"]
[Date "2024.03.12"]
[Round "5"]
[White "Perecke"]
[Black "prochn"]
[Result "1-0"]
[WhiteElo "2610"]
[BlackElo "2470"]
[TimeControl "180+1"]
[EndTime "14:54:06 PDT"]
[Termination "Perecke won on time"]

1. e4 {[%clk 0:03:00.9]} 1... c6 {[%clk 0:02:59.3]} 2. d4 {[%clk 0:02:49.2]}
2... d5 {[%clk 0:02:59.1]} 3. Nc3 {[%clk 0:02:50.1]} 3... dxe4 {[%clk 0:02:59]}
4. Nxe4 {[%clk 0:02:47.4]} 4... Nf6 {[%clk 0:02:58.9]} 5. Nxf6+ {[%clk 0:02:23]}
5... exf6 {[%clk 0:02:59.8]} 6. c3 {[%clk 0:02:23.7]} 6... Bd6 {[%clk
0:02:55.2]} 7. Bd3 {[%clk 0:02:24.3]} 7... O-O {[%clk 0:02:51.8]} 8. Ne2 {[%clk
0:02:25]} 8... Re8 {[%clk 0:02:49.9]} 9. O-O {[%clk 0:02:13.1]} 9... Nd7 {[%clk
0:02:31]} 10. Ng3 {[%clk 0:02:08.9]} 10... Nf8 {[%clk 0:02:29.1]} 11. Nf5 {[%clk
0:02:06.1]} 11... Bxf5 {[%clk 0:02:16.1]} 12. Bxf5 {[%clk 0:02:03.7]} 12... Bc7
{[%clk 0:02:09.4]} 13. Bd3 {[%clk 0:02:00.6]} 13... Qd6 {[%clk 0:02:07.8]} 14.
g3 {[%clk 0:01:58]} 14... Ne6 {[%clk 0:02:05.9]} 15. Be3 {[%clk 0:01:14.5]}
15... g6 {[%clk 0:02:05.8]} 16. Bc2 {[%clk 0:01:10.4]} 16... f5 {[%clk
0:02:05.8]} 17. Qf3 {[%clk 0:01:08.5]} 17... f4 {[%clk 0:02:00.8]} 18. Bd2
{[%clk 0:01:08.3]} 18... h5 {[%clk 0:01:17.4]} 19. Rae1 {[%clk 0:00:51.3]} 19...
Ng5 {[%clk 0:01:06.9]} 20. Qd3 {[%clk 0:00:51.1]} 20... Ne6 {[%clk 0:00:51.5]}
21. Re4 {[%clk 0:00:44]} 21... Rad8 {[%clk 0:00:44]} 22. Bxf4 {[%clk 0:00:37.7]}
22... Nxf4 {[%clk 0:00:43.7]} 23. Rxf4 {[%clk 0:00:38.6]} 23... Qe6 {[%clk
0:00:39.8]} 24. Bb3 {[%clk 0:00:34.2]} 24... Rd5 {[%clk 0:00:33.7]} 25. Rf3
{[%clk 0:00:31.9]} 25... Qe2 {[%clk 0:00:26.4]} 26. Bxd5 {[%clk 0:00:20.4]}
26... cxd5 {[%clk 0:00:22.8]} 27. Rd1 {[%clk 0:00:20.2]} 27... Qxb2 {[%clk
0:00:19.1]} 28. Re3 {[%clk 0:00:17.3]} 28... Rc8 {[%clk 0:00:14.7]} 29. Re7
{[%clk 0:00:15.2]} 29... Bd6 {[%clk 0:00:13.6]} 30. Rb1 {[%clk 0:00:13.5]} 30...
Qxa2 {[%clk 0:00:09.7]} 31. Rexb7 {[%clk 0:00:13.8]} 31... a5 {[%clk 0:00:03.9]}
32. Qf3 {[%clk 0:00:13.4]} 1-0

[Event "Late-Titled-Tuesday-Blitz-March-12-2024"]
[Site "Chess.com"]
[Date "2024.03.12"]
[Round "5"]
[White "yuriydovzik"]
[Black "Josgar05"]
[Result "1/2-1/2"]
[WhiteElo "2111"]
[BlackElo "2367"]
[TimeControl "180+1"]
[EndTime "14:54:07 PDT"]
[Termination "Game drawn by repetition"]

1. Nf3 {[%clk 0:02:58.3]} 1... g6 {[%clk 0:02:58.6]} 2. c4 {[%clk 0:02:54.5]}
2... Bg7 {[%clk 0:02:59]} 3. Nc3 {[%clk 0:02:53.9]} 3... d6 {[%clk 0:02:54.5]}
4. d4 {[%clk 0:02:47.9]} 4... f5 {[%clk 0:02:54.4]} 5. e4 {[%clk 0:02:45]} 5...
fxe4 {[%clk 0:02:44.5]} 6. Nxe4 {[%clk 0:02:43.6]} 6... Nf6 {[%clk 0:02:44.5]}
7. Nxf6+ {[%clk 0:02:38.7]} 7... Bxf6 {[%clk 0:02:44]} 8. Be2 {[%clk 0:02:35.8]}
8... Bf5 {[%clk 0:02:43.6]} 9. O-O {[%clk 0:02:34.7]} 9... c5 {[%clk 0:02:44]}
10. Bg5 {[%clk 0:02:27.4]} 10... O-O {[%clk 0:02:42.2]} 11. Bxf6 {[%clk
0:02:25.1]} 11... Rxf6 {[%clk 0:02:43.1]} 12. dxc5 {[%clk 0:02:23]} 12... Nc6
{[%clk 0:02:43.1]} 13. cxd6 {[%clk 0:02:19]} 13... Rxd6 {[%clk 0:02:42.6]} 14.
Qc1 {[%clk 0:02:13.3]} 14... Rc8 {[%clk 0:02:41.5]} 15. c5 {[%clk 0:02:09.8]}
15... Rf6 {[%clk 0:02:31.6]} 16. Qc3 {[%clk 0:01:56.2]} 16... Qc7 {[%clk
0:02:18.4]} 17. b4 {[%clk 0:01:50.5]} 17... a6 {[%clk 0:02:07.2]} 18. h3 {[%clk
0:01:48.2]} 18... Qf4 {[%clk 0:02:00.3]} 19. Qc4+ {[%clk 0:01:40.1]} 19... Qxc4
{[%clk 0:01:57.1]} 20. Bxc4+ {[%clk 0:01:39.9]} 20... Kg7 {[%clk 0:01:58]} 21.
a3 {[%clk 0:01:39.3]} 21... Bxh3 {[%clk 0:01:42]} 22. Ng5 {[%clk 0:01:35.2]}
22... Bf5 {[%clk 0:01:37.8]} 23. Rfe1 {[%clk 0:01:30.8]} 23... Rd8 {[%clk
0:01:35.7]} 24. Rad1 {[%clk 0:01:25.4]} 24... Rxd1 {[%clk 0:01:25]} 25. Rxd1
{[%clk 0:01:24.7]} 25... h6 {[%clk 0:01:25.9]} 26. Nf3 {[%clk 0:01:22.3]} 26...
Bg4 {[%clk 0:01:26.4]} 27. Bd5 {[%clk 0:01:19]} 27... Kf8 {[%clk 0:01:18]} 28.
Rd3 {[%clk 0:01:17.1]} 28... Rf4 {[%clk 0:01:14.1]} 29. Bxc6 {[%clk 0:01:13.1]}
29... bxc6 {[%clk 0:01:13.4]} 30. Ne5 {[%clk 0:01:13.1]} 30... Bf5 {[%clk
0:01:12.8]} 31. Rf3 {[%clk 0:01:06]} 31... Rxf3 {[%clk 0:01:05.5]} 32. gxf3
{[%clk 0:01:05.6]} 32... Ke8 {[%clk 0:01:00.2]} 33. Nxc6 {[%clk 0:01:04.9]}
33... Kd7 {[%clk 0:01:00.4]} 34. Nd4 {[%clk 0:01:04]} 34... Bd3 {[%clk
0:00:59.6]} 35. f4 {[%clk 0:01:03.5]} 35... g5 {[%clk 0:00:58.8]} 36. fxg5
{[%clk 0:01:02.7]} 36... hxg5 {[%clk 0:00:59.7]} 37. Kg2 {[%clk 0:01:03]} 37...
e5 {[%clk 0:00:59.4]} 38. Nf3 {[%clk 0:01:01.3]} 38... e4 {[%clk 0:00:57.7]} 39.
Nxg5 {[%clk 0:01:00.7]} 39... Kc6 {[%clk 0:00:58]} 40. Kg3 {[%clk 0:00:59.1]}
40... Kb5 {[%clk 0:00:58.5]} 41. Kf4 {[%clk 0:00:59.2]} 41... Ka4 {[%clk
0:00:59]} 42. Nxe4 {[%clk 0:00:59.1]} 42... Kxa3 {[%clk 0:00:58.8]} 43. c6
{[%clk 0:00:58.8]} 43... Bb5 {[%clk 0:00:59.1]} 44. c7 {[%clk 0:00:58.5]} 44...
Bd7 {[%clk 0:00:59.8]} 45. Nd6 {[%clk 0:00:55.9]} 45... Kxb4 {[%clk 0:00:59.4]}
46. c8=Q {[%clk 0:00:54.9]} 46... Bxc8 {[%clk 0:00:59.9]} 47. Nxc8 {[%clk
0:00:55]} 47... a5 {[%clk 0:01:00.5]} 48. Nb6 {[%clk 0:00:53.5]} 48... Kc5
{[%clk 0:01:01]} 49. Na4+ {[%clk 0:00:52.9]} 49... Kb4 {[%clk 0:01:01.5]} 50.
Nb2 {[%clk 0:00:52.5]} 50... Kc3 {[%clk 0:01:01.4]} 51. Na4+ {[%clk 0:00:50.5]}
51... Kb4 {[%clk 0:01:01.4]} 52. Nb6 {[%clk 0:00:50.1]} 52... Kc5 {[%clk
0:01:01.1]} 53. Nd7+ {[%clk 0:00:48.2]} 53... Kb4 {[%clk 0:01:01.1]} 54. Ke3
{[%clk 0:00:47.5]} 54... a4 {[%clk 0:01:01.4]} 55. Ne5 {[%clk 0:00:47.2]} 55...
Kc3 {[%clk 0:00:54.5]} 56. Nd3 {[%clk 0:00:43.8]} 56... a3 {[%clk 0:00:53.9]}
57. Nc1 {[%clk 0:00:43.7]} 57... Kc2 {[%clk 0:00:53.4]} 58. Na2 {[%clk
0:00:43.5]} 58... Kb3 {[%clk 0:00:53.3]} 59. Nc1+ {[%clk 0:00:40]} 59... Kc2
{[%clk 0:00:53.6]} 60. Nd3 {[%clk 0:00:36.7]} 60... Kc3 {[%clk 0:00:51.7]} 61.
Nc1 {[%clk 0:00:31.7]} 61... Kc2 {[%clk 0:00:46.9]} 1/2-1/2

[Event "Late-Titled-Tuesday-Blitz-March-12-2024"]
[Site "Chess.com"]
[Date "2024.03.12"]
[Round "5"]
[White "GothamChess"]
[Black "ContrVersia"]
[Result "0-1"]
[WhiteElo "2690"]
[BlackElo "2877"]
[TimeControl "180+1"]
[EndTime "14:54:09 PDT"]
[Termination "ContrVersia won on time"]

1. e4 {[%clk 0:03:00.9]} 1... c5 {[%clk 0:02:59.1]} 2. Nc3 {[%clk 0:03:00.2]}
2... Nc6 {[%clk 0:02:59.2]} 3. Bb5 {[%clk 0:02:59.9]} 3... Nd4 {[%clk
0:02:59.2]} 4. Nf3 {[%clk 0:03:00.3]} 4... e6 {[%clk 0:02:58.9]} 5. O-O {[%clk
0:03:00.3]} 5... a6 {[%clk 0:02:59.1]} 6. Bd3 {[%clk 0:03:00.4]} 6... Nc6 {[%clk
0:02:59.4]} 7. Re1 {[%clk 0:02:59.4]} 7... g5 {[%clk 0:02:59.3]} 8. h3 {[%clk
0:02:13.9]} 8... h5 {[%clk 0:02:59]} 9. Nh2 {[%clk 0:02:12]} 9... Bg7 {[%clk
0:02:52.8]} 10. Be2 {[%clk 0:01:50.2]} 10... Nd4 {[%clk 0:02:28.3]} 11. Nf3
{[%clk 0:01:42.1]} 11... g4 {[%clk 0:02:23.9]} 12. Nxd4 {[%clk 0:01:32.2]} 12...
cxd4 {[%clk 0:02:22.4]} 13. Nb1 {[%clk 0:01:32.8]} 13... gxh3 {[%clk 0:02:16.5]}
14. gxh3 {[%clk 0:01:32.5]} 14... Qg5+ {[%clk 0:01:57.2]} 15. Kh1 {[%clk
0:01:29.4]} 15... Qh4 {[%clk 0:01:55.5]} 16. Bf1 {[%clk 0:01:27.8]} 16... Qxf2
{[%clk 0:01:38.4]} 17. d3 {[%clk 0:01:22.5]} 17... Be5 {[%clk 0:01:27]} 18. Re2
{[%clk 0:01:18.9]} 18... Qf3+ {[%clk 0:01:24.4]} 19. Bg2 {[%clk 0:01:12.7]}
19... Qg3 {[%clk 0:01:24.5]} 20. Kg1 {[%clk 0:01:13.4]} 20... Ne7 {[%clk
0:01:11.2]} 21. Nd2 {[%clk 0:01:12.3]} 21... Rg8 {[%clk 0:01:07.5]} 22. Kf1
{[%clk 0:00:57.6]} 22... b5 {[%clk 0:00:48.7]} 23. Nf3 {[%clk 0:00:55.7]} 23...
Bb7 {[%clk 0:00:48.7]} 24. Nxe5 {[%clk 0:00:47.9]} 24... Qxe5 {[%clk 0:00:48]}
25. Rf2 {[%clk 0:00:48.6]} 25... Ng6 {[%clk 0:00:39.4]} 26. a4 {[%clk
0:00:47.3]} 26... Nh4 {[%clk 0:00:30.2]} 27. Bf4 {[%clk 0:00:46.9]} 27... Qg7
{[%clk 0:00:30.2]} 28. Bh1 {[%clk 0:00:27.8]} 28... b4 {[%clk 0:00:23.4]} 29.
Qxh5 {[%clk 0:00:20.6]} 29... Qg1+ {[%clk 0:00:22.7]} 30. Ke2 {[%clk 0:00:21.3]}
30... Qxa1 {[%clk 0:00:23.4]} 31. Bd6 {[%clk 0:00:05]} 31... Ng6 {[%clk
0:00:15.6]} 32. Qg5 {[%clk 0:00:02.8]} 32... Qxh1 {[%clk 0:00:09.4]} 33. Rg2
{[%clk 0:00:01.7]} 33... Qxg2+ {[%clk 0:00:06.1]} 0-1

[Event "Late-Titled-Tuesday-Blitz-March-12-2024"]
[Site "Chess.com"]
[Date "2024.03.12"]
[Round "5"]
[White "Zhigalko_Sergei"]
[Black "LikeWater"]
[Result "1-0"]
[WhiteElo "2860"]
[BlackElo "2684"]
[TimeControl "180+1"]
[EndTime "14:54:11 PDT"]
[Termination "Zhigalko_Sergei won on time"]

1. e4 {[%clk 0:03:00.9]} 1... c5 {[%clk 0:02:59.5]} 2. Nf3 {[%clk 0:03:01]} 2...
a6 {[%clk 0:02:56.5]} 3. c3 {[%clk 0:03:01.1]} 3... e6 {[%clk 0:02:53.3]} 4. d4
{[%clk 0:03:00.9]} 4... d5 {[%clk 0:02:53.8]} 5. e5 {[%clk 0:02:58.5]} 5... Bd7
{[%clk 0:02:51.8]} 6. Be2 {[%clk 0:02:57.7]} 6... Bb5 {[%clk 0:02:51.4]} 7.
Bxb5+ {[%clk 0:02:55]} 7... axb5 {[%clk 0:02:51.1]} 8. dxc5 {[%clk 0:02:55.7]}
8... Bxc5 {[%clk 0:02:50.3]} 9. b4 {[%clk 0:02:55.9]} 9... Bb6 {[%clk
0:02:42.3]} 10. Na3 {[%clk 0:02:50.3]} 10... Ne7 {[%clk 0:02:38.9]} 11. Nxb5
{[%clk 0:02:49]} 11... O-O {[%clk 0:02:38.6]} 12. O-O {[%clk 0:02:46.7]} 12...
Ng6 {[%clk 0:02:22.2]} 13. Re1 {[%clk 0:02:38.4]} 13... Qd7 {[%clk 0:02:19.9]}
14. a4 {[%clk 0:02:29.8]} 14... Nc6 {[%clk 0:02:14.2]} 15. Be3 {[%clk
0:02:24.3]} 15... Bxe3 {[%clk 0:02:05.1]} 16. Rxe3 {[%clk 0:02:25.2]} 16... Rfd8
{[%clk 0:01:46.9]} 17. h4 {[%clk 0:02:19.9]} 17... Nge7 {[%clk 0:01:40.2]} 18.
Nfd4 {[%clk 0:02:14.9]} 18... Ng6 {[%clk 0:01:32.5]} 19. Nf3 {[%clk 0:02:09.9]}
19... f6 {[%clk 0:01:21.9]} 20. exf6 {[%clk 0:01:59.8]} 20... gxf6 {[%clk
0:01:22.8]} 21. h5 {[%clk 0:01:54.6]} 21... Nf4 {[%clk 0:01:12.7]} 22. h6 {[%clk
0:01:26.8]} 22... e5 {[%clk 0:01:07.5]} 23. g3 {[%clk 0:01:27]} 23... Qh3 {[%clk
0:00:23.9]} 24. gxf4 {[%clk 0:00:59.3]} 24... exf4 {[%clk 0:00:23.6]} 25. Rd3
{[%clk 0:00:31.5]} 25... Kh8 {[%clk 0:00:21.6]} 26. Ng5 {[%clk 0:00:31.2]} 26...
Qf5 {[%clk 0:00:04.2]} 27. Nf7+ {[%clk 0:00:29.1]} 27... Kg8 {[%clk 0:00:05.1]}
28. Nxd8 {[%clk 0:00:29]} 28... Rxd8 {[%clk 0:00:06]} 29. Nd4 {[%clk 0:00:20.1]}
29... Qg6+ {[%clk 0:00:06]} 30. Kf1 {[%clk 0:00:15.8]} 30... Ne5 {[%clk
0:00:06.9]} 31. Rh3 {[%clk 0:00:15.8]} 31... Kh8 {[%clk 0:00:06.5]} 32. Qh5
{[%clk 0:00:14.3]} 32... Qe4 {[%clk 0:00:02.2]} 33. Re1 {[%clk 0:00:13.4]} 1-0

[Event "Late-Titled-Tuesday-Blitz-March-12-2024"]
[Site "Chess.com"]
[Date "2024.03.12"]
[Round "5"]
[White "Rinqed222"]
[Black "Sinquefield"]
[Result "1-0"]
[WhiteElo "2345"]
[BlackElo "2510"]
[TimeControl "180+1"]
[EndTime "14:54:11 PDT"]
[Termination "Rinqed222 won by resignation"]

1. e4 {[%clk 0:03:00.9]} 1... d6 {[%clk 0:03:00.9]} 2. d4 {[%clk 0:02:59.4]}
2... Nf6 {[%clk 0:03:00.6]} 3. Nc3 {[%clk 0:02:59.2]} 3... Nbd7 {[%clk
0:02:59.3]} 4. g4 {[%clk 0:02:58.3]} 4... g6 {[%clk 0:02:56.9]} 5. Bg2 {[%clk
0:02:50.3]} 5... e5 {[%clk 0:02:55.3]} 6. Be3 {[%clk 0:02:44.6]} 6... Bg7 {[%clk
0:02:51.3]} 7. h3 {[%clk 0:02:43.7]} 7... c6 {[%clk 0:02:43.4]} 8. Nge2 {[%clk
0:02:43.6]} 8... Qe7 {[%clk 0:02:42.7]} 9. a4 {[%clk 0:02:38]} 9... h6 {[%clk
0:02:28]} 10. a5 {[%clk 0:02:27.1]} 10... a6 {[%clk 0:02:22.5]} 11. O-O {[%clk
0:02:12.3]} 11... O-O {[%clk 0:02:13.3]} 12. Qd2 {[%clk 0:02:08.9]} 12... Kh7
{[%clk 0:02:11.9]} 13. Ng3 {[%clk 0:02:04]} 13... exd4 {[%clk 0:02:10]} 14. Bxd4
{[%clk 0:02:03.9]} 14... Nc5 {[%clk 0:02:09]} 15. Rfe1 {[%clk 0:01:54.4]} 15...
Ne6 {[%clk 0:02:05.1]} 16. Be3 {[%clk 0:01:49.1]} 16... Nc5 {[%clk 0:01:41.7]}
17. Rad1 {[%clk 0:01:29.8]} 17... Rd8 {[%clk 0:01:41]} 18. Bxc5 {[%clk 0:01:28]}
18... Be6 {[%clk 0:01:39.5]} 19. Bxd6 {[%clk 0:01:23.4]} 19... Qe8 {[%clk
0:01:39.5]} 20. Qc1 {[%clk 0:01:14.5]} 20... Nd7 {[%clk 0:01:37]} 21. e5 {[%clk
0:01:08.2]} 21... Rac8 {[%clk 0:01:31.9]} 22. Qf4 {[%clk 0:01:03]} 22... Nf8
{[%clk 0:01:29.8]} 23. Nge4 {[%clk 0:01:01.9]} 23... g5 {[%clk 0:01:26.4]} 24.
Qg3 {[%clk 0:00:53.6]} 24... Ng6 {[%clk 0:01:25.5]} 25. Nf6+ {[%clk 0:00:50]}
25... Bxf6 {[%clk 0:01:25.6]} 26. exf6 {[%clk 0:00:50.9]} 26... Rd7 {[%clk
0:01:20.6]} 27. Be4 {[%clk 0:00:49.6]} 27... Rcd8 {[%clk 0:01:10]} 28. Na4
{[%clk 0:00:47.9]} 28... Qh8 {[%clk 0:00:55.3]} 29. Nc5 {[%clk 0:00:44.9]} 29...
Qxf6 {[%clk 0:00:55.5]} 30. Nxd7 {[%clk 0:00:42.8]} 30... Rxd7 {[%clk
0:00:56.4]} 31. Bxg6+ {[%clk 0:00:37.5]} 31... Qxg6 {[%clk 0:00:57.3]} 32. Qd3
{[%clk 0:00:36.4]} 32... Bd5 {[%clk 0:00:53]} 33. Qxg6+ {[%clk 0:00:35.4]} 33...
Kxg6 {[%clk 0:00:53.9]} 34. Bg3 {[%clk 0:00:33.6]} 34... f5 {[%clk 0:00:48.9]}
35. c4 {[%clk 0:00:33.1]} 35... f4 {[%clk 0:00:48.7]} 36. cxd5 {[%clk
0:00:30.2]} 36... cxd5 {[%clk 0:00:48.5]} 37. Bh2 {[%clk 0:00:26.8]} 37... Kf6
{[%clk 0:00:48]} 38. f3 {[%clk 0:00:26.2]} 38... d4 {[%clk 0:00:46.8]} 39. Kg2
{[%clk 0:00:26.1]} 39... Rd5 {[%clk 0:00:47.3]} 40. Bg1 {[%clk 0:00:25.9]} 40...
Rxa5 {[%clk 0:00:46.4]} 41. Bxd4+ {[%clk 0:00:26]} 41... Kf7 {[%clk 0:00:46.7]}
42. Bc3 {[%clk 0:00:25.7]} 42... Rb5 {[%clk 0:00:47.1]} 43. Rd7+ {[%clk
0:00:25.5]} 43... Kf8 {[%clk 0:00:46.1]} 44. Re6 {[%clk 0:00:24.3]} 44... h5
{[%clk 0:00:43.5]} 45. Rh6 {[%clk 0:00:24.1]} 45... Ke8 {[%clk 0:00:42.4]} 46.
Rg7 {[%clk 0:00:24.1]} 46... Rf5 {[%clk 0:00:39.5]} 47. gxf5 {[%clk 0:00:23.4]}
1-0

[Event "Late-Titled-Tuesday-Blitz-March-12-2024"]
[Site "Chess.com"]
[Date "2024.03.12"]
[Round "5"]
[White "betta2004"]
[Black "ChessBrainiacOnTwitch"]
[Result "1-0"]
[WhiteElo "2559"]
[BlackElo "2751"]
[TimeControl "180+1"]
[EndTime "14:54:14 PDT"]
[Termination "betta2004 won by checkmate"]

1. e4 {[%clk 0:02:59.9]} 1... c5 {[%clk 0:02:55.3]} 2. Nc3 {[%clk 0:02:59.2]}
2... a6 {[%clk 0:02:54.3]} 3. g3 {[%clk 0:02:58.7]} 3... b5 {[%clk 0:02:53.1]}
4. Bg2 {[%clk 0:02:59.2]} 4... Bb7 {[%clk 0:02:53.9]} 5. Nh3 {[%clk 0:02:59.1]}
5... e6 {[%clk 0:02:54.1]} 6. O-O {[%clk 0:02:59.2]} 6... Nf6 {[%clk 0:02:53.5]}
7. d3 {[%clk 0:02:59.6]} 7... Nc6 {[%clk 0:02:52.2]} 8. f4 {[%clk 0:02:59.9]}
8... b4 {[%clk 0:02:50.5]} 9. Na4 {[%clk 0:02:59]} 9... d6 {[%clk 0:02:44.4]}
10. Be3 {[%clk 0:02:54.2]} 10... Be7 {[%clk 0:02:44.5]} 11. g4 {[%clk
0:02:53.5]} 11... Nd7 {[%clk 0:02:43.7]} 12. g5 {[%clk 0:02:51.8]} 12... Qc7
{[%clk 0:02:39.7]} 13. c3 {[%clk 0:02:48.1]} 13... a5 {[%clk 0:02:37]} 14. a3
{[%clk 0:02:47.1]} 14... O-O {[%clk 0:02:28.9]} 15. Nf2 {[%clk 0:02:44.8]} 15...
Rfd8 {[%clk 0:01:53.9]} 16. Qh5 {[%clk 0:02:43.2]} 16... Nf8 {[%clk 0:01:47.8]}
17. Ng4 {[%clk 0:02:42.4]} 17... Ng6 {[%clk 0:01:07.3]} 18. f5 {[%clk
0:02:40.5]} 18... exf5 {[%clk 0:01:07.7]} 19. exf5 {[%clk 0:02:39]} 19... Nge5
{[%clk 0:01:08.1]} 20. f6 {[%clk 0:02:32.7]} 20... Nxg4 {[%clk 0:01:01.7]} 21.
fxe7 {[%clk 0:02:26]} 21... Qxe7 {[%clk 0:01:02.6]} 22. Be4 {[%clk 0:02:13.8]}
22... f5 {[%clk 0:00:29.4]} 23. g6 {[%clk 0:00:51.9]} 23... hxg6 {[%clk
0:00:22.2]} 24. Bd5+ {[%clk 0:00:47.5]} 24... Qf7 {[%clk 0:00:16.5]} 25. Bxf7+
{[%clk 0:00:45.4]} 25... Kxf7 {[%clk 0:00:17.4]} 26. Qxg4 {[%clk 0:00:41.1]}
26... Ne5 {[%clk 0:00:15.4]} 27. Qg3 {[%clk 0:00:40.3]} 27... Nxd3 {[%clk
0:00:11.4]} 28. Bg5 {[%clk 0:00:35.2]} 28... Be4 {[%clk 0:00:07.5]} 29. Rad1
{[%clk 0:00:34]} 29... Ne5 {[%clk 0:00:05.3]} 30. Nb6 {[%clk 0:00:30.7]} 30...
bxc3 {[%clk 0:00:02.6]} 31. bxc3 {[%clk 0:00:30]} 31... Rh8 {[%clk 0:00:02.2]}
32. Nxa8 {[%clk 0:00:29.2]} 32... Rxa8 {[%clk 0:00:02.1]} 33. Bf4 {[%clk
0:00:28.8]} 33... Nc4 {[%clk 0:00:01.6]} 34. Bxd6 {[%clk 0:00:28.6]} 34... Rh8
{[%clk 0:00:01.8]} 35. Bxc5 {[%clk 0:00:28.6]} 35... Ke6 {[%clk 0:00:01.2]} 36.
Qxg6+ {[%clk 0:00:28.4]} 36... Ke5 {[%clk 0:00:01.4]} 37. Bd4+ {[%clk
0:00:28.1]} 37... Kd5 {[%clk 0:00:01.8]} 38. Bxg7+ {[%clk 0:00:28.4]} 38... Kc5
{[%clk 0:00:02.2]} 39. Bxh8 {[%clk 0:00:27.1]} 39... Kb5 {[%clk 0:00:03.1]} 40.
Rxf5+ {[%clk 0:00:26.4]} 40... Bxf5 {[%clk 0:00:03.3]} 41. Qxf5+ {[%clk
0:00:27.3]} 41... Ka4 {[%clk 0:00:04.2]} 42. Qe4 {[%clk 0:00:27]} 42... Kb3
{[%clk 0:00:05.1]} 43. Rb1+ {[%clk 0:00:27]} 43... Kxa3 {[%clk 0:00:05.3]} 44.
Qxc4 {[%clk 0:00:25.9]} 44... a4 {[%clk 0:00:06.2]} 45. Qb4+ {[%clk 0:00:26.2]}
45... Ka2 {[%clk 0:00:06.7]} 46. Qb2# {[%clk 0:00:27.1]} 1-0